[Event "*** Titled Tuesday Blitz"]
[Site "Chess.com"]
[Date "2020.12.29"]
[Round "1"]
[White "ChampStan"]
[Black "Mikasinski"]
[Result "0-1"]
[WhiteElo "2166"]
[BlackElo "2517"]
[TimeControl "180+1"]
[EndTime "10:08:46 PST"]
[Termination "Mikasinski won on time"]

1. d4 {[%clk 0:02:58.5]} 1... Nf6 {[%clk 0:02:59.8]} 2. c4 {[%clk 0:02:58.4]}
2... g6 {[%clk 0:02:57.5]} 3. Nf3 {[%clk 0:02:57.8]} 3... Bg7 {[%clk 0:02:57.4]}
4. g3 {[%clk 0:02:58]} 4... O-O {[%clk 0:02:57.5]} 5. Bg2 {[%clk 0:02:58.2]}
5... d6 {[%clk 0:02:58.1]} 6. O-O {[%clk 0:02:58]} 6... Nc6 {[%clk 0:02:58.3]}
7. Nc3 {[%clk 0:02:57.7]} 7... a6 {[%clk 0:02:58.3]} 8. d5 {[%clk 0:02:57]} 8...
Na5 {[%clk 0:02:58.3]} 9. b3 {[%clk 0:02:57.2]} 9... c5 {[%clk 0:02:57.6]} 10.
dxc6 {[%clk 0:02:57]} 10... Nxc6 {[%clk 0:02:56.7]} 11. Bb2 {[%clk 0:02:55.4]}
11... Bf5 {[%clk 0:02:53.4]} 12. Qc1 {[%clk 0:02:54.4]} 12... Qa5 {[%clk
0:02:46.7]} 13. Rd1 {[%clk 0:02:54]} 13... Rfd8 {[%clk 0:02:46]} 14. Nd5 {[%clk
0:02:51.2]} 14... Rac8 {[%clk 0:02:04.9]} 15. Nxf6+ {[%clk 0:02:48.7]} 15...
Bxf6 {[%clk 0:02:04.7]} 16. Bxf6 {[%clk 0:02:40.1]} 16... exf6 {[%clk
0:02:04.8]} 17. Qb2 {[%clk 0:02:21.6]} 17... Kg7 {[%clk 0:01:45.1]} 18. Rd5
{[%clk 0:02:18.7]} 18... Qb6 {[%clk 0:01:37.1]} 19. Rad1 {[%clk 0:02:06.8]}
19... Ne5 {[%clk 0:01:29.9]} 20. Nh4 {[%clk 0:01:53.3]} 20... Be6 {[%clk
0:01:28.8]} 21. Qd4 {[%clk 0:01:48.3]} 21... Qc7 {[%clk 0:01:18.7]} 22. Rxd6
{[%clk 0:01:43.7]} 22... Rxd6 {[%clk 0:01:10.3]} 23. Qxd6 {[%clk 0:01:42.2]}
23... Qa5 {[%clk 0:01:10.5]} 24. Bxb7 {[%clk 0:01:29.8]} 24... Rc7 {[%clk
0:00:58.7]} 25. Qxa6 {[%clk 0:01:22.5]} 25... Qc3 {[%clk 0:00:52.2]} 26. Bg2
{[%clk 0:01:13.7]} 26... Qc2 {[%clk 0:00:48.7]} 27. Re1 {[%clk 0:01:07]} 27...
Qd2 {[%clk 0:00:42.6]} 28. Kf1 {[%clk 0:01:02.1]} 28... Ng4 {[%clk 0:00:38.4]}
29. Nf3 {[%clk 0:00:54.3]} 29... Qc3 {[%clk 0:00:36.2]} 30. h3 {[%clk
0:00:46.1]} 30... Nh6 {[%clk 0:00:35.3]} 31. Qd6 {[%clk 0:00:37.4]} 31... Rd7
{[%clk 0:00:34.7]} 32. Qf4 {[%clk 0:00:36.2]} 32... Qb2 {[%clk 0:00:29.3]} 33.
g4 {[%clk 0:00:20.2]} 33... g5 {[%clk 0:00:27.7]} 34. Nxg5 {[%clk 0:00:16.9]}
34... Ng8 {[%clk 0:00:12.4]} 35. Nxe6+ {[%clk 0:00:15.7]} 35... fxe6 {[%clk
0:00:13.3]} 36. Qe4 {[%clk 0:00:14.7]} 36... e5 {[%clk 0:00:05.3]} 37. Qb1
{[%clk 0:00:13.8]} 37... Qa3 {[%clk 0:00:04.9]} 38. Bd5 {[%clk 0:00:13]} 38...
Re7 {[%clk 0:00:04.5]} 39. Rd1 {[%clk 0:00:12.1]} 39... Nh6 {[%clk 0:00:04.1]}
40. Be4 {[%clk 0:00:12]} 40... Qa5 {[%clk 0:00:03.5]} 41. Bxh7 {[%clk
0:00:10.9]} 41... e4 {[%clk 0:00:03.5]} 42. Bxe4 {[%clk 0:00:09.6]} 42... Qe5
{[%clk 0:00:03.4]} 43. Bg2 {[%clk 0:00:09]} 43... Qxe2+ {[%clk 0:00:03.4]} 44.
Kg1 {[%clk 0:00:09.4]} 44... Nf7 {[%clk 0:00:02.6]} 45. Qd3 {[%clk 0:00:07]}
45... Qxa2 {[%clk 0:00:02]} 46. c5 {[%clk 0:00:06.1]} 46... Ne5 {[%clk
0:00:01.9]} 47. Qe3 {[%clk 0:00:06]} 47... Qa3 {[%clk 0:00:01.9]} 48. c6 {[%clk
0:00:05.3]} 48... Ng6 {[%clk 0:00:02.3]} 49. Qc3 {[%clk 0:00:04.9]} 49... Qa7
{[%clk 0:00:01.8]} 50. b4 {[%clk 0:00:03.2]} 50... Qc7 {[%clk 0:00:02.4]} 51.
Rf1 {[%clk 0:00:03.4]} 51... Nf4 {[%clk 0:00:02.9]} 52. b5 {[%clk 0:00:03.3]}
52... Ne2+ {[%clk 0:00:02.9]} 53. Kh1 {[%clk 0:00:03.5]} 53... Nxc3 {[%clk
0:00:03.8]} 54. f4 {[%clk 0:00:02.7]} 54... Nxb5 {[%clk 0:00:04.1]} 55. g5
{[%clk 0:00:02.8]} 55... fxg5 {[%clk 0:00:04.2]} 56. fxg5 {[%clk 0:00:02.8]}
56... Rf7 {[%clk 0:00:04.8]} 57. Rb1 {[%clk 0:00:01.9]} 57... Nd4 {[%clk
0:00:04.8]} 58. Rb7 {[%clk 0:00:01.6]} 58... Qg3 {[%clk 0:00:05.3]} 59. Rxf7+
{[%clk 0:00:01.6]} 59... Kxf7 {[%clk 0:00:06.1]} 60. g6+ {[%clk 0:00:02]} 60...
Qxg6 {[%clk 0:00:06.2]} 0-1

[Event "*** Titled Tuesday Blitz"]
[Site "Chess.com"]
[Date "2020.12.29"]
[Round "1"]
[White "Leo_C"]
[Black "Meri-Arabidze"]
[Result "1/2-1/2"]
[WhiteElo "2343"]
[BlackElo "2632"]
[TimeControl "180+1"]
[EndTime "10:08:47 PST"]
[Termination "Game drawn by repetition"]

1. d4 {[%clk 0:02:52.1]} 1... d5 {[%clk 0:02:59.7]} 2. c4 {[%clk 0:02:51.5]}
2... e6 {[%clk 0:03:00]} 3. Nc3 {[%clk 0:02:50.8]} 3... Nf6 {[%clk 0:03:00.5]}
4. cxd5 {[%clk 0:02:51]} 4... exd5 {[%clk 0:03:01.4]} 5. Bg5 {[%clk 0:02:50.5]}
5... Nbd7 {[%clk 0:03:02.1]} 6. e3 {[%clk 0:02:50.4]} 6... Be7 {[%clk
0:03:02.8]} 7. Bd3 {[%clk 0:02:50.4]} 7... c6 {[%clk 0:03:03.5]} 8. Nge2 {[%clk
0:02:49.9]} 8... Nf8 {[%clk 0:03:04.1]} 9. O-O {[%clk 0:02:48.3]} 9... Ne6
{[%clk 0:03:04.7]} 10. Bh4 {[%clk 0:02:48.2]} 10... O-O {[%clk 0:03:04.7]} 11.
Qc2 {[%clk 0:02:45.9]} 11... g6 {[%clk 0:03:05]} 12. f3 {[%clk 0:02:44.5]} 12...
b5 {[%clk 0:03:05.6]} 13. a3 {[%clk 0:02:42.8]} 13... Bb7 {[%clk 0:03:05.2]} 14.
Rad1 {[%clk 0:02:39.7]} 14... Rc8 {[%clk 0:03:04.6]} 15. Bf2 {[%clk 0:02:36.4]}
15... a6 {[%clk 0:03:04.6]} 16. h3 {[%clk 0:02:35.3]} 16... c5 {[%clk
0:03:03.1]} 17. dxc5 {[%clk 0:02:33.7]} 17... Bxc5 {[%clk 0:02:56.8]} 18. Nd4
{[%clk 0:02:32.3]} 18... Nxd4 {[%clk 0:02:48.2]} 19. exd4 {[%clk 0:02:32]} 19...
Bd6 {[%clk 0:02:49.1]} 20. Bh4 {[%clk 0:02:26.8]} 20... Bb8 {[%clk 0:02:43.7]}
21. Rfe1 {[%clk 0:02:22.1]} 21... Qd6 {[%clk 0:02:42.3]} 22. Re5 {[%clk
0:02:19.6]} 22... Qb6 {[%clk 0:02:36.1]} 23. Qf2 {[%clk 0:02:13.8]} 23... Bxe5
{[%clk 0:02:28.6]} 24. dxe5 {[%clk 0:02:14.7]} 24... Qxf2+ {[%clk 0:02:28.6]}
25. Kxf2 {[%clk 0:02:15.1]} 25... Nd7 {[%clk 0:02:29]} 26. f4 {[%clk 0:02:08.8]}
26... Nc5 {[%clk 0:02:26.8]} 27. Bc2 {[%clk 0:02:06.6]} 27... Ne4+ {[%clk
0:02:21.4]} 28. Bxe4 {[%clk 0:02:06]} 28... dxe4 {[%clk 0:02:21.8]} 29. Rd7
{[%clk 0:02:05.2]} 29... Bc6 {[%clk 0:02:18.9]} 30. Ra7 {[%clk 0:02:04.9]} 30...
Ra8 {[%clk 0:02:16.2]} 31. Rc7 {[%clk 0:01:57.7]} 31... Rfc8 {[%clk 0:02:15.7]}
32. Re7 {[%clk 0:01:56.9]} 32... a5 {[%clk 0:01:56.9]} 33. e6 {[%clk 0:01:53.1]}
33... fxe6 {[%clk 0:01:45.7]} 34. Bf6 {[%clk 0:01:51.8]} 34... b4 {[%clk
0:01:42.9]} 35. Rg7+ {[%clk 0:01:50.1]} 35... Kf8 {[%clk 0:01:42.3]} 36. Ne2
{[%clk 0:01:48.7]} 36... Bd5 {[%clk 0:01:01.2]} 37. axb4 {[%clk 0:01:37.5]}
37... axb4 {[%clk 0:01:00.2]} 38. Rxh7 {[%clk 0:01:37.1]} 38... Rc2 {[%clk
0:00:33.3]} 39. Ke3 {[%clk 0:01:35.3]} 39... Rac8 {[%clk 0:00:32.6]} 40. g4
{[%clk 0:01:27.8]} 40... b3 {[%clk 0:00:24.4]} 41. f5 {[%clk 0:01:19.7]} 41...
Rxe2+ {[%clk 0:00:19.5]} 42. Kxe2 {[%clk 0:01:18.2]} 42... Rc2+ {[%clk
0:00:20.4]} 43. Ke3 {[%clk 0:01:17.7]} 43... exf5 {[%clk 0:00:21.3]} 44. gxf5
{[%clk 0:01:14.5]} 44... gxf5 {[%clk 0:00:22.2]} 45. h4 {[%clk 0:01:12.9]} 45...
Rh2 {[%clk 0:00:22]} 46. h5 {[%clk 0:01:12]} 46... Rh3+ {[%clk 0:00:21.8]} 47.
Kd4 {[%clk 0:01:07.7]} 47... Bf7 {[%clk 0:00:11.5]} 48. h6 {[%clk 0:00:54.5]}
48... Bg6 {[%clk 0:00:09.1]} 49. Rb7 {[%clk 0:00:39.6]} 49... f4 {[%clk
0:00:07.4]} 50. Ke5 {[%clk 0:00:26.4]} 50... e3 {[%clk 0:00:07.7]} 51. Ke6
{[%clk 0:00:25.7]} 51... e2 {[%clk 0:00:04.3]} 52. Bg7+ {[%clk 0:00:20.4]} 52...
Kg8 {[%clk 0:00:03.5]} 53. Rb8+ {[%clk 0:00:20.6]} 53... Be8 {[%clk 0:00:03.9]}
54. Rxe8+ {[%clk 0:00:20.4]} 54... Kh7 {[%clk 0:00:04.8]} 55. Rh8+ {[%clk
0:00:12.1]} 55... Kg6 {[%clk 0:00:04.3]} 56. Bc3 {[%clk 0:00:12.4]} 56... f3
{[%clk 0:00:04.8]} 57. Rf8 {[%clk 0:00:11.3]} 57... Rh1 {[%clk 0:00:03.8]} 58.
Rxf3 {[%clk 0:00:11.1]} 58... e1=Q+ {[%clk 0:00:04.1]} 59. Bxe1 {[%clk
0:00:11.6]} 59... Rxe1+ {[%clk 0:00:05]} 60. Kd7 {[%clk 0:00:12.1]} 60... Re2
{[%clk 0:00:04.7]} 61. Rxb3 {[%clk 0:00:11.8]} 61... Kxh6 {[%clk 0:00:04.8]} 62.
Rb6+ {[%clk 0:00:12.2]} 62... Kg5 {[%clk 0:00:04.9]} 63. b4 {[%clk 0:00:12.7]}
63... Kf5 {[%clk 0:00:04.5]} 64. b5 {[%clk 0:00:13]} 64... Rb2 {[%clk
0:00:04.6]} 65. Kc7 {[%clk 0:00:12]} 65... Ke5 {[%clk 0:00:03.8]} 66. Kb7 {[%clk
0:00:12.4]} 66... Kd5 {[%clk 0:00:03.6]} 67. Ka6 {[%clk 0:00:12.2]} 67... Ra2+
{[%clk 0:00:03.6]} 68. Kb7 {[%clk 0:00:12.5]} 68... Rb2 {[%clk 0:00:03.4]} 69.
Ka6 {[%clk 0:00:12.2]} 69... Ra2+ {[%clk 0:00:03.7]} 70. Kb7 {[%clk 0:00:12.6]}
70... Rb2 {[%clk 0:00:04.6]} 1/2-1/2

[Event "*** Titled Tuesday Blitz"]
[Site "Chess.com"]
[Date "2020.12.29"]
[Round "1"]
[White "KubaGepard"]
[Black "FlamingPhoenix123"]
[Result "1/2-1/2"]
[WhiteElo "2304"]
[BlackElo "2577"]
[TimeControl "180+1"]
[EndTime "10:08:54 PST"]
[Termination "Game drawn by stalemate"]

1. e4 {[%clk 0:03:00.6]} 1... c5 {[%clk 0:02:47.8]} 2. Nf3 {[%clk 0:03:00.3]}
2... d6 {[%clk 0:02:47.8]} 3. d4 {[%clk 0:03:00.1]} 3... cxd4 {[%clk 0:02:48.7]}
4. Nxd4 {[%clk 0:03:00.4]} 4... Nf6 {[%clk 0:02:49.4]} 5. Nc3 {[%clk 0:03:00.7]}
5... Nc6 {[%clk 0:02:49.8]} 6. Bg5 {[%clk 0:02:59.8]} 6... e6 {[%clk 0:02:48.9]}
7. Qd2 {[%clk 0:02:59.7]} 7... a6 {[%clk 0:02:47.6]} 8. O-O-O {[%clk 0:02:56.3]}
8... h6 {[%clk 0:02:47.8]} 9. Nxc6 {[%clk 0:02:56.1]} 9... bxc6 {[%clk
0:02:48.7]} 10. Bf4 {[%clk 0:02:56.4]} 10... d5 {[%clk 0:02:48.2]} 11. Qe3
{[%clk 0:02:55.7]} 11... Bb4 {[%clk 0:02:48.1]} 12. a3 {[%clk 0:02:37.3]} 12...
Ba5 {[%clk 0:02:38.2]} 13. Qc5 {[%clk 0:02:32.7]} 13... Qb6 {[%clk 0:02:31.6]}
14. Qxb6 {[%clk 0:02:25.8]} 14... Bxb6 {[%clk 0:02:32.5]} 15. f3 {[%clk
0:02:23.3]} 15... O-O {[%clk 0:02:27.4]} 16. Na4 {[%clk 0:02:21]} 16... Bd8
{[%clk 0:02:22.7]} 17. Bd6 {[%clk 0:02:17.4]} 17... Re8 {[%clk 0:02:22.9]} 18.
e5 {[%clk 0:02:14.8]} 18... Nd7 {[%clk 0:02:16.3]} 19. c4 {[%clk 0:02:13.7]}
19... Bg5+ {[%clk 0:01:54.8]} 20. Kb1 {[%clk 0:02:09]} 20... Bf4 {[%clk
0:01:55.7]} 21. Re1 {[%clk 0:02:02.7]} 21... f6 {[%clk 0:01:40.1]} 22. cxd5
{[%clk 0:01:57]} 22... cxd5 {[%clk 0:01:38.5]} 23. Bd3 {[%clk 0:01:34.2]} 23...
Bxe5 {[%clk 0:01:36.2]} 24. Bb4 {[%clk 0:01:32.3]} 24... Rb8 {[%clk 0:01:26.3]}
25. Bg6 {[%clk 0:01:30.6]} 25... Rd8 {[%clk 0:01:21.8]} 26. Be7 {[%clk
0:01:29.4]} 26... Nf8 {[%clk 0:01:14.8]} 27. Bxd8 {[%clk 0:01:23]} 27... Nxg6
{[%clk 0:01:15.3]} 28. Ba5 {[%clk 0:01:15.4]} 28... Bd7 {[%clk 0:01:14.4]} 29.
Nc3 {[%clk 0:01:14.6]} 29... Nf4 {[%clk 0:01:05.7]} 30. g3 {[%clk 0:01:07.9]}
30... Nd3 {[%clk 0:01:06]} 31. Re2 {[%clk 0:01:07.6]} 31... Bd6 {[%clk
0:00:59.1]} 32. Ka2 {[%clk 0:01:00]} 32... Ne5 {[%clk 0:00:58.8]} 33. f4 {[%clk
0:00:58.6]} 33... Nc4 {[%clk 0:00:57]} 34. Bb4 {[%clk 0:00:57.9]} 34... Bxb4
{[%clk 0:00:57.2]} 35. axb4 {[%clk 0:00:58.4]} 35... Rxb4 {[%clk 0:00:58.1]} 36.
f5 {[%clk 0:00:52.5]} 36... e5 {[%clk 0:00:49.2]} 37. Nxd5 {[%clk 0:00:49]}
37... Ra4+ {[%clk 0:00:49.7]} 38. Kb3 {[%clk 0:00:49.1]} 38... Na5+ {[%clk
0:00:45.6]} 39. Kc2 {[%clk 0:00:46.4]} 39... Bxf5+ {[%clk 0:00:38.9]} 40. Kd2
{[%clk 0:00:41.1]} 40... Rd4+ {[%clk 0:00:37.9]} 41. Ke3 {[%clk 0:00:39.3]}
41... Nc4+ {[%clk 0:00:38.5]} 42. Kf2 {[%clk 0:00:38.6]} 42... Rxd5 {[%clk
0:00:39.4]} 43. Rc1 {[%clk 0:00:38.2]} 43... Nd6 {[%clk 0:00:38.8]} 44. Rc6
{[%clk 0:00:37.9]} 44... Ne4+ {[%clk 0:00:38.1]} 45. Ke3 {[%clk 0:00:38.1]}
45... Ng5 {[%clk 0:00:38.2]} 46. Rxa6 {[%clk 0:00:34.8]} 46... Rd3+ {[%clk
0:00:38.5]} 47. Kf2 {[%clk 0:00:34.8]} 47... Ne4+ {[%clk 0:00:39.1]} 48. Kg2
{[%clk 0:00:31.2]} 48... Rb3 {[%clk 0:00:38]} 49. Ra3 {[%clk 0:00:30.4]} 49...
Rb8 {[%clk 0:00:35.3]} 50. Rf3 {[%clk 0:00:30]} 50... Be6 {[%clk 0:00:33.6]} 51.
Rxe4 {[%clk 0:00:26.8]} 51... Bd5 {[%clk 0:00:32.8]} 52. Re2 {[%clk 0:00:25.2]}
52... Rb3 {[%clk 0:00:33.2]} 53. Rf2 {[%clk 0:00:22.2]} 53... Bxf3+ {[%clk
0:00:32.1]} 54. Rxf3 {[%clk 0:00:22.7]} 54... Rxb2+ {[%clk 0:00:32.7]} 55. Kh3
{[%clk 0:00:22.5]} 55... Kf7 {[%clk 0:00:33.2]} 56. g4 {[%clk 0:00:22.7]} 56...
Kg6 {[%clk 0:00:33.3]} 57. Rc3 {[%clk 0:00:22.5]} 57... h5 {[%clk 0:00:32.9]}
58. gxh5+ {[%clk 0:00:21.3]} 58... Kxh5 {[%clk 0:00:33.8]} 59. Kg3 {[%clk
0:00:21.6]} 59... Kg5 {[%clk 0:00:33]} 60. h4+ {[%clk 0:00:21.2]} 60... Kf5
{[%clk 0:00:33.5]} 61. Rf3+ {[%clk 0:00:21.7]} 61... Ke4 {[%clk 0:00:32.5]} 62.
Ra3 {[%clk 0:00:22.1]} 62... Rd2 {[%clk 0:00:31.4]} 63. Ra4+ {[%clk 0:00:22]}
63... Rd4 {[%clk 0:00:30.9]} 64. Ra7 {[%clk 0:00:21.9]} 64... Rd3+ {[%clk
0:00:31.4]} 65. Kg4 {[%clk 0:00:21.8]} 65... f5+ {[%clk 0:00:31.9]} 66. Kh5
{[%clk 0:00:22]} 66... Rg3 {[%clk 0:00:32.1]} 67. Ra4+ {[%clk 0:00:21.1]} 67...
Kf3 {[%clk 0:00:29.6]} 68. Rf4+ {[%clk 0:00:21]} 68... Ke3 {[%clk 0:00:21.2]}
69. Re4+ {[%clk 0:00:20.9]} 69... Kf2 {[%clk 0:00:20.8]} 70. Re2+ {[%clk
0:00:20.3]} 70... Kg1 {[%clk 0:00:20.2]} 71. Re1+ {[%clk 0:00:20.3]} 71... Kh2
{[%clk 0:00:20.7]} 72. Rh1+ {[%clk 0:00:20.4]} 72... Kg2 {[%clk 0:00:20.4]} 73.
Rh2+ {[%clk 0:00:20.7]} 73... Kf3 {[%clk 0:00:14]} 74. Rf2+ {[%clk 0:00:20.7]}
74... Ke4 {[%clk 0:00:13.6]} 75. Rf4+ {[%clk 0:00:20.2]} 75... Kd5 {[%clk
0:00:13.5]} 76. Rd4+ {[%clk 0:00:20.5]} 76... Ke6 {[%clk 0:00:13.9]} 77. Rd6+
{[%clk 0:00:20.6]} 77... Kf7 {[%clk 0:00:08.8]} 78. Rd7+ {[%clk 0:00:20.6]}
78... Kg8 {[%clk 0:00:08.7]} 79. Rd8+ {[%clk 0:00:20.6]} 79... Kh7 {[%clk
0:00:08.7]} 80. Rh8+ {[%clk 0:00:20.5]} 80... Kxh8 {[%clk 0:00:09.4]} 1/2-1/2

[Event "*** Titled Tuesday Blitz"]
[Site "Chess.com"]
[Date "2020.12.29"]
[Round "1"]
[White "ErikRonka"]
[Black "mbojan"]
[Result "1-0"]
[WhiteElo "2375"]
[BlackElo "2672"]
[TimeControl "180+1"]
[EndTime "10:09:03 PST"]
[Termination "ErikRonka won by checkmate"]

1. e4 {[%clk 0:03:00.9]} 1... g6 {[%clk 0:03:00.3]} 2. d4 {[%clk 0:02:59.7]}
2... Bg7 {[%clk 0:03:00.8]} 3. c4 {[%clk 0:03:00.1]} 3... d6 {[%clk 0:03:00.9]}
4. Nc3 {[%clk 0:02:58.3]} 4... e5 {[%clk 0:03:01]} 5. Nge2 {[%clk 0:02:57.9]}
5... Nf6 {[%clk 0:02:57.2]} 6. f3 {[%clk 0:02:53.7]} 6... O-O {[%clk 0:02:54.8]}
7. Be3 {[%clk 0:02:53.7]} 7... exd4 {[%clk 0:02:54.8]} 8. Nxd4 {[%clk
0:02:53.2]} 8... c6 {[%clk 0:02:55.1]} 9. Be2 {[%clk 0:02:36.3]} 9... Re8 {[%clk
0:02:55]} 10. Bf2 {[%clk 0:02:36.7]} 10... d5 {[%clk 0:02:55.3]} 11. exd5 {[%clk
0:02:26.9]} 11... cxd5 {[%clk 0:02:55.4]} 12. c5 {[%clk 0:02:27.4]} 12... Nc6
{[%clk 0:02:55.7]} 13. O-O {[%clk 0:02:27.1]} 13... Nh5 {[%clk 0:02:55.4]} 14.
Qd2 {[%clk 0:02:17.3]} 14... Be5 {[%clk 0:02:54.9]} 15. g3 {[%clk 0:02:09.6]}
15... Ng7 {[%clk 0:02:54.5]} 16. Rad1 {[%clk 0:01:52.4]} 16... Ne6 {[%clk
0:02:20]} 17. Nxe6 {[%clk 0:01:46.2]} 17... Bxe6 {[%clk 0:02:15.4]} 18. Nb5
{[%clk 0:01:16.6]} 18... d4 {[%clk 0:01:34.4]} 19. b4 {[%clk 0:00:38.1]} 19...
a6 {[%clk 0:00:59.4]} 20. Na3 {[%clk 0:00:37.5]} 20... Bc7 {[%clk 0:00:42.8]}
21. Rfe1 {[%clk 0:00:28.3]} 21... h5 {[%clk 0:00:37.8]} 22. Nc4 {[%clk
0:00:25.3]} 22... h4 {[%clk 0:00:29.4]} 23. a4 {[%clk 0:00:24.9]} 23... Qb8
{[%clk 0:00:25.9]} 24. f4 {[%clk 0:00:22.9]} 24... hxg3 {[%clk 0:00:16.3]} 25.
hxg3 {[%clk 0:00:22.4]} 25... b5 {[%clk 0:00:08]} 26. cxb6 {[%clk 0:00:20.2]}
26... Bxb6 {[%clk 0:00:08.5]} 27. Nxb6 {[%clk 0:00:20.8]} 27... Qxb6 {[%clk
0:00:09.4]} 28. b5 {[%clk 0:00:20.4]} 28... axb5 {[%clk 0:00:09.5]} 29. axb5
{[%clk 0:00:21.3]} 29... Ne7 {[%clk 0:00:08.7]} 30. Bxd4 {[%clk 0:00:21.6]}
30... Qb7 {[%clk 0:00:09.2]} 31. Bb2 {[%clk 0:00:17.4]} 31... Qa7+ {[%clk
0:00:03.5]} 32. Kg2 {[%clk 0:00:14.1]} 32... Bd5+ {[%clk 0:00:03.6]} 33. Bf3
{[%clk 0:00:13.6]} 33... Bxf3+ {[%clk 0:00:03.9]} 34. Kxf3 {[%clk 0:00:14.4]}
34... Nf5 {[%clk 0:00:02.9]} 35. Qc3 {[%clk 0:00:11.3]} 35... Qb7+ {[%clk
0:00:03]} 36. Kg4 {[%clk 0:00:07.8]} 36... Nh6+ {[%clk 0:00:02]} 37. Kh3 {[%clk
0:00:08]} 37... Qc8+ {[%clk 0:00:01.6]} 38. Kg2 {[%clk 0:00:03.9]} 38... Qxc3
{[%clk 0:00:01.5]} 39. Bxc3 {[%clk 0:00:03.4]} 39... Ng4 {[%clk 0:00:02.2]} 40.
Rxe8+ {[%clk 0:00:02.5]} 40... Rxe8 {[%clk 0:00:03.1]} 41. Rb1 {[%clk
0:00:02.8]} 41... Rc8 {[%clk 0:00:03.2]} 42. b6 {[%clk 0:00:03.1]} 42... Rb8
{[%clk 0:00:02.4]} 43. b7 {[%clk 0:00:03.2]} 43... f6 {[%clk 0:00:02.6]} 44. Ba5
{[%clk 0:00:03.8]} 44... Ne3+ {[%clk 0:00:02.9]} 45. Kf3 {[%clk 0:00:03.3]}
45... Nd5 {[%clk 0:00:03.8]} 46. Bd2 {[%clk 0:00:02.5]} 46... Kf7 {[%clk
0:00:02.4]} 47. Be3 {[%clk 0:00:02.9]} 47... Ne7 {[%clk 0:00:01.6]} 48. Ba7
{[%clk 0:00:02.5]} 48... Rxb7 {[%clk 0:00:01.5]} 49. Bb8 {[%clk 0:00:03]} 49...
Ke6 {[%clk 0:00:02.4]} 50. Rxb7 {[%clk 0:00:01.9]} 50... Nd5 {[%clk 0:00:03.3]}
51. Rb3 {[%clk 0:00:02.3]} 51... f5 {[%clk 0:00:03.1]} 52. Rb1 {[%clk
0:00:03.2]} 52... Nc3 {[%clk 0:00:03.3]} 53. Re1+ {[%clk 0:00:04.1]} 53... Kf7
{[%clk 0:00:03]} 54. Re3 {[%clk 0:00:05]} 54... Nd5 {[%clk 0:00:02.8]} 55. Rd3
{[%clk 0:00:05.5]} 55... Nb4 {[%clk 0:00:03]} 56. Rb3 {[%clk 0:00:04.7]} 56...
Nc6 {[%clk 0:00:03.1]} 57. Be5 {[%clk 0:00:05.6]} 57... Nd8 {[%clk 0:00:02.7]}
58. Rb6 {[%clk 0:00:05.2]} 58... Ne6 {[%clk 0:00:02.8]} 59. Ra6 {[%clk
0:00:05.3]} 59... Nc5 {[%clk 0:00:03.2]} 60. Ra7+ {[%clk 0:00:05.4]} 60... Ke6
{[%clk 0:00:04.1]} 61. g4 {[%clk 0:00:05]} 61... Ne4 {[%clk 0:00:03.7]} 62.
gxf5+ {[%clk 0:00:04.7]} 62... gxf5 {[%clk 0:00:04.6]} 63. Ra6+ {[%clk
0:00:04.5]} 63... Kd5 {[%clk 0:00:05.2]} 64. Ra4 {[%clk 0:00:05]} 64... Nd2+
{[%clk 0:00:05]} 65. Ke2 {[%clk 0:00:04.3]} 65... Nc4 {[%clk 0:00:05.9]} 66.
Rxc4 {[%clk 0:00:03.8]} 66... Kxc4 {[%clk 0:00:06.1]} 67. Kf3 {[%clk 0:00:04.7]}
67... Kd3 {[%clk 0:00:06.6]} 68. Kg3 {[%clk 0:00:05.5]} 68... Kc4 {[%clk
0:00:06.5]} 69. Kh4 {[%clk 0:00:06.4]} 69... Kd5 {[%clk 0:00:06.8]} 70. Kg5
{[%clk 0:00:07.3]} 70... Ke4 {[%clk 0:00:07.7]} 71. Kf6 {[%clk 0:00:07.5]} 71...
Kf3 {[%clk 0:00:07.9]} 72. Kxf5 {[%clk 0:00:08.4]} 72... Ke3 {[%clk 0:00:08.6]}
73. Kg6 {[%clk 0:00:09]} 73... Kf3 {[%clk 0:00:09.5]} 74. f5 {[%clk 0:00:09.7]}
74... Ke4 {[%clk 0:00:10.4]} 75. f6 {[%clk 0:00:10.6]} 75... Kxe5 {[%clk
0:00:11.1]} 76. f7 {[%clk 0:00:11.5]} 76... Ke6 {[%clk 0:00:12]} 77. f8=Q {[%clk
0:00:11.7]} 77... Kd7 {[%clk 0:00:12.9]} 78. Qf6 {[%clk 0:00:11.9]} 78... Kc8
{[%clk 0:00:13]} 79. Kf5 {[%clk 0:00:12.8]} 79... Kd7 {[%clk 0:00:13.3]} 80. Ke5
{[%clk 0:00:13.7]} 80... Kc7 {[%clk 0:00:13.6]} 81. Kd5 {[%clk 0:00:13.9]} 81...
Kd7 {[%clk 0:00:14]} 82. Qe6+ {[%clk 0:00:14]} 82... Kc7 {[%clk 0:00:14.1]} 83.
Qd6+ {[%clk 0:00:13.5]} 83... Kb7 {[%clk 0:00:14.2]} 84. Qc6+ {[%clk 0:00:13.7]}
84... Kb8 {[%clk 0:00:14.4]} 85. Qd7 {[%clk 0:00:13.6]} 85... Ka8 {[%clk
0:00:14.8]} 86. Kc6 {[%clk 0:00:13.1]} 86... Kb8 {[%clk 0:00:15.7]} 87. Qb7#
{[%clk 0:00:13.4]} 1-0